bitfinex-derivatives/quotes_BNBF0:USTF0_20250521
["timestamp","ask_amount","ask_price","bid_price","bid_amount"]
[1747822307152,3.82364943,652.59,650.95,0.60025406]
[1747822307353,3.82364943,652.59,650.96,0.60025406]
[1747822307557,0.26704626,652.52,650.96,0.60025406]
[1747822308757,0.26704626,652.52,650.97,0.60025406]
[1747822309858,0.26704626,652.52,650.98,0.60025406]
[1747822310261,3.82364943,652.72,650.98,0.60025406]
[1747822310960,3.82364943,652.72,650.74,0.60025406]
[1747822311260,3.82364943,652.72,650.75,0.91989068]
[1747822311459,0.26703806,652.71,650.76,0.91989068]
[1747822311657,0.26703806,652.71,650.77,0.91989068]
[1747822311859,0.26703806,652.71,650.78,0.91989068]
[1747822312059,0.26703806,652.71,650.79,2.0691325]
[1747822312255,0.26703806,652.71,650.8,0.91989068]
[1747822312455,0.26703806,652.71,650.81,2.06909685]
[1747822312757,0.26703806,652.71,650.82,0.91985503]
[1747822312960,0.26703806,652.71,650.83,0.91985503]
[1747822313162,3.82364943,652.38,650.9,0.64799162]
[1747822313456,3.82364943,652.38,650.91,0.91985503]
[1747822313662,3.82364943,652.38,650.92,2.06909685]
[1747822313859,3.82364943,652.38,650.93,0.91985503]
[1747822314059,3.82364943,652.38,650.94,2.06909685]
[1747822314257,3.82364943,652.38,650.95,0.92067159]
[1747822314561,3.82364943,652.38,650.96,0.92067159]
[1747822314861,3.82364943,652.38,650.97,2.06991341]
[1747822315057,3.82364943,652.38,650.98,2.06991341]
[1747822315260,3.82364943,652.38,650.99,0.92067159]
[1747822315462,3.82364943,652.38,651.0,2.06991341]
[1747822315761,3.82364943,652.38,651.01,0.61372685]
[1747822315957,3.82364943,652.38,651.02,0.61371887]
[1747822316162,3.82364943,652.38,651.03,0.61371887]
[1747822316356,3.82364943,652.38,651.04,0.61371887]
[1747822316558,3.82364943,652.38,651.05,0.61371887]
[1747822316759,3.82364943,652.38,651.06,0.61371887]
[1747822316959,3.82364943,652.38,651.0,0.60025406]
[1747822316960,3.82364943,652.38,651.07,0.61371887]
[1747822317156,3.82364943,652.38,651.08,0.61371887]
[1747822317360,3.82364943,652.38,651.09,0.60025406]
[1747822317959,3.82364943,652.38,651.1,0.61373444]
[1747822318163,3.82364943,652.38,651.11,0.61373444]
[1747822318359,3.82364943,652.38,651.12,0.61373444]
[1747822318561,3.82364943,652.38,651.09,0.60025406]
[1747822318761,3.82364943,652.38,651.13,0.60025406]
[1747822319464,3.82364943,652.38,651.14,0.61364419]
[1747822319664,3.82364943,652.38,651.15,0.61364419]
[1747822319858,3.82364943,652.38,651.16,0.61364419]
[1747822320161,3.82364943,652.38,651.13,0.60025406]
[1747822320162,3.82364943,652.38,651.17,1.21389825]
[1747822320359,3.82364943,652.38,651.18,0.61364419]
[1747822320565,3.82364943,652.38,651.19,0.61364419]
[1747822320768,3.82364943,652.38,651.2,0.61364419]
[1747822320967,3.82364943,652.38,651.21,0.61364419]
[1747822321163,3.82364943,652.38,651.17,0.60025406]
[1747822321363,3.82364943,652.38,651.18,0.61347004]
[1747822321562,0.26698685,652.5,651.22,0.60025406]
[1747822322166,5.35310921,652.65,651.22,0.60025406]
[1747822322567,5.35310921,652.65,650.93,0.60025406]
[1747822322766,5.35310921,652.65,650.94,2.06581994]
[1747822322966,5.35310921,652.65,650.95,0.9200785]
[1747822323166,5.35310921,652.65,650.96,2.06581994]
[1747822323367,5.35310921,652.65,650.97,0.9200785]
[1747822323567,0.2669807,652.64,650.98,2.06581994]
[1747822323766,0.2669807,652.64,650.99,0.9200785]
[1747822323962,0.2669807,652.64,651.0,0.9200785]
[1747822324165,0.2669807,652.64,651.01,2.06581994]
[1747822324367,0.2669807,652.64,651.02,0.9200785]
[1747822324562,0.2669807,652.64,651.03,0.9200785]
[1747822324762,0.2669807,652.64,651.04,2.06581994]
[1747822324961,0.2669807,652.64,651.05,0.9200785]
[1747822325164,5.35310921,652.65,651.06,2.06581994]
[1747822325461,0.26697046,652.63,651.07,0.9200785]
[1747822325768,0.26697046,652.63,651.08,2.06495185]
[1747822325964,0.26697046,652.63,651.09,0.91921041]
[1747822326161,0.26697046,652.63,651.1,0.91921041]
[1747822326367,0.26697046,652.63,651.11,0.91920988]
[1747822326562,0.26697046,652.63,651.12,0.61231959]
[1747822326766,0.26697046,652.63,651.09,0.60025406]
[1747822326767,0.26697046,652.63,651.13,0.61231959]
[1747822326966,0.26697046,652.63,651.14,0.61231959]
[1747822327167,0.26697046,652.63,651.15,0.61231959]
[1747822327365,0.26697046,652.63,651.16,0.61219638]
[1747822327571,0.26697046,652.63,651.14,0.60025406]
[1747822327875,0.26697046,652.63,651.15,0.61211196]
[1747822328169,5.35310921,652.65,651.16,0.61211196]
[1747822328368,5.35310921,652.65,651.14,0.60025406]
[1747822328570,0.26696022,652.62,651.15,0.61209652]
[1747822328768,0.26696022,652.62,651.15,0.60025406]
[1747822328969,0.26696022,652.62,651.16,0.61210821]
[1747822329169,0.26696022,652.62,651.15,0.60025406]
[1747822329470,0.26696022,652.62,651.16,0.61209728]
[1747822329672,0.26696022,652.62,651.15,0.60025406]
[1747822330472,0.26696022,652.62,651.16,0.60025406]
[1747822331172,5.35310921,652.65,651.16,0.60025406]
[1747822331672,5.35310921,652.65,651.17,0.60025406]
[1747822332471,0.26695817,652.64,651.17,0.60025406]
[1747822333072,0.26695817,652.64,651.18,0.60025406]
[1747822334275,5.35310921,652.65,651.19,0.61155285]
[1747822334474,0.26693974,652.63,651.2,0.61155285]
[1747822334676,0.26693974,652.63,651.19,0.60025406]
[1747822336271,0.26693974,652.63,651.2,0.61141641]
[1747822336475,0.26693974,652.63,651.2,0.60025406]
[1747822336977,0.26693974,652.63,651.21,0.61130392]
[1747822337275,3.82364943,653.19,651.22,0.61130392]
[1747822337475,0.26688652,652.62,651.23,0.61128838]
[1747822337677,3.82364943,653.19,651.24,0.60025406]
[1747822338576,0.26688345,653.18,651.24,0.60025406]
[1747822339684,0.26688345,653.18,651.25,0.60025406]
[1747822340180,3.82364943,653.19,651.25,0.60025406]
[1747822340480,3.82364943,653.19,651.26,0.60025406]
[1747822341580,0.26687526,653.18,651.26,0.60025406]
[1747822341777,0.26687526,653.18,651.27,0.60025406]
[1747822342781,0.26687526,653.18,651.28,0.60025406]
[1747822343182,3.82364943,653.19,651.28,0.60025406]
[1747822343984,3.82364943,653.19,651.29,0.60025406]
[1747822344485,0.26687219,653.18,651.29,0.60025406]
[1747822345186,0.26687219,653.18,651.0,0.64799162]
[1747822345387,0.26687219,653.18,651.01,0.91759592]
[1747822345686,0.26687219,653.18,651.02,2.05804519]
[1747822345883,0.26687219,653.18,651.03,0.91759592]
[1747822346086,0.26687219,653.18,651.04,0.91759592]
[1747822346283,3.82364943,653.19,651.05,2.05804519]
[1747822346581,3.82364943,653.19,651.06,0.91759592]
[1747822346781,3.82364943,653.19,651.07,0.91759592]
[1747822346979,3.82364943,653.19,651.08,2.05804519]
[1747822347186,3.82364943,653.19,651.09,0.91759592]
[1747822347384,0.26689368,653.18,651.1,2.05804519]
[1747822347585,0.26689368,653.18,651.11,0.91759592]
[1747822347786,0.26689368,653.18,651.12,0.91759592]
[1747822348087,0.26689368,653.18,651.13,0.91761014]
[1747822348283,0.26689368,653.18,651.12,0.59787323]
[1747822349185,3.82364943,653.19,651.12,0.59787323]
[1747822349385,3.82364943,652.63,651.05,0.59787323]
[1747822349585,3.82364943,652.63,651.06,0.61084718]
[1747822349783,3.82364943,652.63,651.07,0.61084276]
[1747822349983,3.82364943,652.63,651.08,0.61084276]
[1747822350186,3.82364943,652.63,651.09,0.59787323]
[1747822350485,0.26695203,652.62,651.09,0.59787323]
[1747822351686,0.26695203,652.62,650.97,0.59787323]
[1747822351985,0.26695203,652.62,650.98,2.05820508]
[1747822352186,3.82364943,652.63,650.99,2.05820508]
[1747822352489,3.82364943,652.63,651.0,2.05820508]
[1747822352682,3.82364943,652.63,651.01,2.05820508]
[1747822352881,3.82364943,652.63,651.02,2.05820508]
[1747822353083,3.82364943,652.63,651.03,1.51567991]
[1747822353388,3.82364943,652.63,651.04,0.91780627]
[1747822353590,0.26695715,652.62,651.05,0.61096119]
[1747822353889,0.26695715,652.62,651.06,0.61096119]
[1747822354090,0.26695715,652.62,651.07,0.61096119]
[1747822354290,0.26695715,652.62,651.08,0.61096119]
[1747822354593,0.26695715,652.62,651.09,0.61096119]
[1747822354889,0.26695715,652.62,651.07,0.59787323]
[1747822355090,0.26695715,652.62,651.08,0.61114275]
[1747822355289,0.26695715,652.62,651.09,0.61114275]
[1747822355489,0.26695715,652.62,651.1,1.20908274]
[1747822355689,0.26695715,652.62,651.1,0.59787323]
[1747822357190,0.26695715,652.62,650.97,0.64799162]
[1747822357384,0.26695715,652.62,650.98,0.91821115]
[1747822357584,0.26695715,652.62,650.99,0.91821115]
[1747822357786,0.26695715,652.62,651.0,0.91821115]
[1747822357989,0.26695715,652.62,650.98,1.14149901]
[1747822358290,3.82364943,652.63,650.99,2.6579167]
[1747822358491,3.82364943,652.63,651.0,0.91870365]
[1747822358688,3.82364943,652.63,650.99,1.73937224]
[1747822358689,3.82364943,652.63,651.01,2.06020266]
[1747822358889,3.82364943,652.63,651.02,0.91870365]
[1747822359085,3.82364943,652.63,651.03,0.91870988]
[1747822359285,3.82364943,652.63,651.04,1.75329567]
[1747822359488,0.26699299,652.62,651.05,0.61179666]
[1747822359793,0.26699299,652.62,651.06,1.14149901]
[1747822359992,0.26699299,652.62,651.07,0.61179666]
[1747822360194,0.26699299,652.62,651.08,0.61197575]
[1747822360396,0.26699299,652.62,651.09,0.61197575]
[1747822360595,0.26699299,652.62,651.1,0.61197575]
[1747822361199,3.82364943,652.63,651.1,0.61197575]
[1747822361900,3.82364943,652.63,651.11,0.61224087]
[1747822362100,0.26698582,652.62,651.12,0.61223323]
[1747822362300,0.26698582,652.62,651.13,0.61230935]
[1747822362492,0.26698582,652.62,651.09,0.59787323]
[1747822362694,0.26698582,652.62,651.12,0.59787323]
[1747822362896,0.26698582,652.62,651.13,0.61234159]
[1747822363096,0.26698582,652.62,651.12,0.59787323]
[1747822363299,0.26698582,652.62,651.13,0.61243768]
[1747822363595,0.26698582,652.62,651.14,0.61246259]
[1747822363800,0.26698582,652.62,651.14,0.59787323]
[1747822364200,3.82364943,653.18,651.14,0.59787323]
[1747822364502,3.82364943,653.18,651.15,0.61258628]
[1747822364695,3.82364943,653.18,651.14,0.59787323]
[1747822365201,3.82364943,653.18,651.15,0.6127249]
[1747822365397,3.82364943,653.18,651.14,0.59787323]
[1747822365598,0.26691313,653.17,651.15,0.61272546]
[1747822365797,0.26691313,653.17,651.16,0.59787323]
[1747822367002,0.26691313,653.17,650.88,0.59787323]
[1747822367203,3.82364943,653.18,650.89,0.9198199]
[1747822367400,3.82364943,653.18,650.9,2.06486588]
[1747822367600,3.82364943,653.18,650.91,0.9198199]
[1747822367796,3.82364943,653.18,650.92,2.06486588]
[1747822368001,3.82364943,653.18,650.93,0.9198199]
[1747822368200,3.82364943,653.18,650.92,1.14504598]
[1747822368201,3.82364943,653.18,650.94,0.9198199]
[1747822368401,3.82364943,653.18,650.95,0.9198199]
[1747822368605,0.26694077,653.17,650.96,2.06486588]
[1747822368903,0.26694077,653.17,650.97,0.92012154]
[1747822369198,0.26694077,653.17,650.98,2.06516752]
[1747822369402,0.26694077,653.17,650.99,2.06516752]
[1747822369604,0.26694077,653.17,651.0,2.06516752]
[1747822369797,0.26694077,653.17,651.01,1.51799477]
[1747822370000,0.26694077,653.17,651.02,2.06516752]
[1747822370199,0.26694077,653.17,651.03,0.92012154]
[1747822370503,3.82364943,653.18,651.04,2.06491216]
[1747822370700,3.82364943,653.18,651.05,0.91986618]
[1747822370902,3.82364943,653.18,651.06,0.91986618]
[1747822371199,3.82364943,653.18,651.07,0.91986618]
[1747822371398,3.82364943,653.18,651.08,0.91986618]
[1747822371602,0.26680467,653.17,651.09,2.06491216]
[1747822371897,0.26680467,653.17,651.34,0.64799162]
[1747822372098,0.26680467,653.17,651.35,0.91986618]
[1747822372301,0.26680467,653.17,651.36,2.06235717]
[1747822372501,0.26680467,653.17,651.37,0.91731119]
[1747822372801,0.26680467,653.17,651.38,2.06235717]
[1747822373000,0.26680467,653.17,651.39,0.91731119]
[1747822373200,0.26680467,653.17,651.4,2.6602304]
[1747822373401,0.26680467,653.17,651.41,0.91731119]
[1747822373600,0.26680467,653.17,651.42,2.06235717]
[1747822373800,0.26680467,653.17,651.43,0.91731119]
[1747822374003,0.26680467,653.17,651.44,0.91731346]
[1747822374204,0.26680467,653.17,651.45,0.91731346]
[1747822374398,0.26680467,653.17,651.46,2.06235944]
[1747822374602,0.26680467,653.17,651.47,0.91731346]
[1747822374798,0.26680467,653.17,651.48,2.06235944]
[1747822375007,0.26680467,653.17,651.49,0.91731346]
[1747822375205,0.26680467,653.17,651.5,2.06235944]
[1747822375402,0.26680467,653.17,651.51,0.91731346]
[1747822375600,0.26680467,653.17,651.52,0.91731503]
[1747822375802,0.26680467,653.17,651.53,0.91731503]
[1747822376005,0.26680467,653.17,651.54,1.51518826]
[1747822376205,3.82364943,653.5,651.55,0.91731503]
[1747822376505,3.82364943,653.5,651.56,0.610656]
[1747822376702,3.82364943,653.5,651.57,0.610656]
[1747822376902,3.82364943,653.5,651.58,0.610656]
[1747822377104,3.82364943,653.5,651.54,0.59787323]
[1747822377407,0.26672901,653.49,651.55,0.91608256]
[1747822377607,0.26672901,653.49,651.56,0.60942488]
[1747822377806,0.26672901,653.49,651.57,0.60942488]
[1747822378005,0.26672901,653.49,651.58,0.60942488]
[1747822378306,0.26672901,653.49,651.55,0.59787323]
[1747822378506,0.26672901,653.49,651.56,0.91591518]
[1747822378706,0.26672901,653.49,651.57,0.91591518]
[1747822379007,0.26672901,653.49,651.58,1.20713054]
[1747822379207,3.82364943,653.5,651.59,0.60925731]
[1747822379406,3.82364943,653.5,651.58,0.59787323]
[1747822380408,0.26673514,653.49,651.58,0.59787323]
[1747822380601,0.26673514,653.49,651.59,0.59787323]
[1747822381709,0.26673514,653.49,651.36,0.64799162]
[1747822381908,0.26673514,653.49,651.37,0.91577842]
[1747822382208,3.82364943,653.5,651.38,0.91577842]
[1747822382510,3.82364943,653.5,651.39,0.91577842]
[1747822382511,0.26676479,653.48,651.39,0.91577842]
[1747822382803,0.26676479,653.48,651.4,2.05207219]
[1747822383008,0.26676479,653.48,651.41,0.91577842]
[1747822383209,0.26676479,653.48,651.42,2.05207219]
[1747822383411,0.26676479,653.48,651.43,0.91577842]
[1747822383612,0.26676479,653.48,651.44,0.91563522]
[1747822383814,0.26676479,653.48,651.45,2.05192899]
[1747822384007,0.26676479,653.48,651.46,2.05192899]
[1747822384207,0.26676479,653.48,651.47,0.91563522]
[1747822384413,0.26676479,653.48,651.48,0.91563522]
[1747822384609,0.26676479,653.48,651.49,0.60893882]
[1747822384813,0.26676479,653.48,651.5,0.59657334]
[1747822385312,3.82364943,653.5,651.5,0.59657334]
[1747822385511,0.26676581,653.47,651.5,0.59657334]
[1747822386516,4.09041524,653.47,651.51,0.59657334]
[1747822387515,4.09041524,653.47,651.52,0.59657334]
[1747822388317,3.82364943,653.47,651.52,0.59657334]
[1747822389415,3.82364943,653.47,651.53,0.59657334]
[1747822389608,0.26677092,653.46,651.53,0.59657334]
[1747822391515,0.26677092,653.46,651.54,0.59657334]
[1747822392819,0.26677092,653.46,651.55,0.59657334]
[1747822393719,0.26677092,653.46,651.56,0.59657334]
[1747822394219,3.82364943,653.75,651.56,0.59657334]
[1747822394414,0.26670754,653.45,651.56,0.59657334]
[1747822394719,3.82364943,653.75,651.56,0.59657334]
[1747822395417,0.26670754,653.74,651.56,0.59657334]
[1747822395614,0.26670754,653.74,651.57,0.59657334]
[1747822396619,0.26670754,653.74,651.58,0.59657334]
[1747822398221,0.26670754,653.74,651.59,0.59657334]
[1747822399721,0.26670754,653.74,651.6,0.59657334]
[1747822400220,3.82364943,653.75,651.6,0.59657334]
[1747822401423,0.26666258,653.74,651.61,0.59657334]
[1747822402622,0.26666258,653.74,651.62,0.59657334]
[1747822403223,3.82364943,654.13,651.62,0.59657334]
[1747822404325,3.82364943,654.13,651.63,0.59657334]
[1747822404525,0.26663602,654.12,651.63,0.59657334]
[1747822404825,0.26663602,654.12,651.64,0.91365094]
[1747822405024,0.26663602,654.12,651.65,0.91365094]
[1747822405226,0.26663602,654.12,651.66,0.30658316]
[1747822405524,0.26663602,654.12,651.67,0.30658316]
[1747822405725,0.26663602,654.12,651.63,0.59657334]
[1747822405924,0.26663602,654.12,651.68,0.59657334]
[1747822406318,3.82364943,654.13,651.68,0.59657334]
[1747822406520,0.26660334,654.11,651.68,0.59657334]
[1747822407826,0.26660334,654.11,651.49,0.26660334]
[1747822407827,3.82364943,653.98,651.69,0.59657334]
[1747822408828,3.82364943,653.98,651.7,0.59657334]
[1747822409527,0.26661661,653.97,651.7,0.59657334]
[1747822410428,0.26661661,653.97,651.71,0.59657334]
[1747822411727,0.26661661,653.97,651.54,0.26661661]
[1747822411926,0.26661661,653.97,651.55,0.91313725]
[1747822412127,0.26661661,653.97,651.56,0.91313725]
[1747822412426,3.82364943,653.98,651.57,2.04161952]
[1747822412627,3.82364943,653.98,651.58,0.91313725]
[1747822412821,3.82364943,653.98,651.59,0.91313725]
[1747822413028,3.82364943,653.98,651.6,2.04163078]
[1747822413222,3.82364943,653.98,651.61,0.30657002]
[1747822413522,0.26664726,653.97,651.61,0.30657002]
[1747822413722,0.26664726,653.97,651.62,0.30657002]
[1747822413921,0.26664726,653.97,651.63,0.30657002]
[1747822415224,3.82364943,653.98,651.63,0.30657002]
[1747822415630,3.82364943,653.98,651.64,0.59421832]
[1747822416427,0.26664317,653.97,651.64,0.59421832]
[1747822417431,0.26664317,653.97,651.52,0.59421832]
[1747822417631,0.26664317,653.97,651.53,0.91339398]
[1747822417835,0.26664317,653.97,651.54,0.91339398]
[1747822418035,0.26664317,653.97,651.55,0.91339398]
[1747822418237,3.82364943,653.98,651.56,0.91339323]
[1747822418435,3.82364943,653.98,651.57,0.91339323]
[1747822418634,3.82364943,653.98,651.58,0.91339323]
[1747822418930,3.82364943,653.98,651.59,2.04230636]
[1747822419233,3.82364943,653.98,651.6,2.04230636]
[1747822419435,0.26665441,653.97,651.61,0.30657905]
[1747822419830,0.26665441,653.97,651.62,0.30657905]
[1747822420034,0.26665441,653.97,651.58,0.59421832]
[1747822420235,0.26665441,653.97,651.62,0.59421832]
[1747822421238,3.82364943,653.98,651.62,0.59421832]
[1747822421434,3.82364943,653.98,651.37,0.59421832]
[1747822421632,0.26665339,653.96,651.47,0.26665339]
[1747822421932,0.26665339,653.96,651.48,2.04580011]
[1747822422137,0.26665339,653.96,651.49,0.91454415]
[1747822422336,0.26665339,653.96,651.5,0.91454415]
[1747822422536,0.26665339,653.96,651.51,2.04580011]
[1747822422737,0.26665339,653.96,651.52,2.04580011]
[1747822422935,1.112,653.95,651.53,0.91454415]
[1747822423133,1.112,653.95,651.52,1.13125596]
[1747822423134,3.82364943,653.67,651.54,0.91454415]
[1747822423434,3.82364943,653.67,651.55,0.91455341]
[1747822423632,3.82364943,653.67,651.56,0.91455341]
[1747822423832,3.82364943,653.67,651.57,0.91455341]
[1747822424031,3.82364943,653.67,651.58,0.91455341]
[1747822424235,3.82364943,653.67,651.59,1.50877173]
[1747822424435,3.82364943,653.67,651.6,0.60794126]
[1747822424632,0.26668915,653.66,651.6,0.60794126]
[1747822425038,0.26668915,653.66,651.59,0.59421832]
[1747822425238,0.26668915,653.66,651.6,0.60903971]
[1747822425437,0.26668915,653.66,651.61,0.60903971]
[1747822425634,0.26668915,653.66,651.62,0.60903971]
[1747822425839,0.26668915,653.66,651.63,0.60903971]
[1747822426037,0.26668915,653.66,651.64,0.60903971]
[1747822426234,0.26668915,653.66,651.62,0.59421832]
[1747822426441,0.26668915,653.66,651.63,2.05207758]
[1747822426735,0.26668915,653.66,651.64,0.91594397]
[1747822427038,0.26668915,653.66,651.65,2.05206063]
[1747822427339,3.82364943,653.67,651.66,1.51016229]
[1747822427639,3.82364943,653.67,651.67,2.05206063]
[1747822427840,3.82364943,653.67,651.68,0.91594397]
[1747822428041,3.82364943,653.67,651.69,0.91594397]
[1747822428241,3.82364943,653.67,651.7,0.91594397]
[1747822428544,0.26665951,653.66,651.71,2.05206063]
[1747822428744,0.26665951,653.66,651.72,0.91594397]
[1747822428946,0.26665951,653.66,651.73,0.91594397]
[1747822429242,0.26665951,653.66,651.74,2.05206063]
[1747822429543,0.26665951,653.66,651.75,1.74546651]
[1747822429739,0.26665951,653.66,651.76,2.33968483]
[1747822429937,0.26665951,653.66,651.77,0.60934985]
[1747822430137,0.26665951,653.66,651.76,1.73033498]
[1747822430337,3.82364943,653.89,651.77,0.61081276]
[1747822430542,3.82364943,653.89,651.78,0.61081276]
[1747822430742,3.82364943,653.89,651.79,0.61081276]
[1747822430942,3.82364943,653.89,651.8,0.61081276]
[1747822431143,3.82364943,653.89,651.81,0.61081276]
[1747822431439,0.26662785,653.88,651.79,0.59421832]
[1747822431644,0.26662785,653.88,651.8,0.61077745]
[1747822431843,0.26662785,653.88,651.81,0.61077745]
[1747822432044,0.26662785,653.88,651.81,0.59421832]
[1747822432843,0.26662785,653.88,651.82,0.61084566]
[1747822433044,0.26662785,653.88,651.81,0.59421832]
[1747822433239,3.82364943,653.89,651.82,0.61084933]
[1747822433444,3.82364943,653.89,651.81,0.59421832]
[1747822433639,3.82364943,653.89,651.6,0.64799162]
[1747822433844,3.82364943,653.89,651.61,0.91741808]
[1747822434040,3.82364943,653.89,651.62,0.91741808]
[1747822434244,3.82364943,653.89,651.63,0.91741808]
[1747822434445,3.82364943,653.89,651.64,2.05607716]
[1747822434645,0.26664623,653.88,651.65,0.91741808]
[1747822434840,0.26664623,653.88,651.66,1.5116364]
[1747822435143,0.26664623,653.88,651.67,2.05607716]
[1747822435343,0.26664623,653.88,651.68,0.91741808]
[1747822435645,0.26664623,653.88,651.69,2.05606267]
[1747822435844,0.26664623,653.88,651.7,0.91740359]
[1747822436045,0.26664623,653.88,651.71,0.91740359]
[1747822436244,0.26664623,653.88,651.7,1.7328774]
[1747822436245,3.82364943,653.89,651.72,2.05606267]
[1747822436445,3.82364943,653.89,651.73,0.91740359]
[1747822436646,3.82364943,653.89,651.74,0.91740359]
[1747822436946,3.82364943,653.89,651.75,0.91740359]
[1747822437146,3.82364943,653.89,651.76,0.91740359]
[1747822437345,3.82364943,653.89,651.77,0.91740359]
[1747822437547,0.26661968,653.88,651.78,2.65028099]
[1747822437743,0.26661968,653.88,651.79,2.05606267]
[1747822438044,0.26661968,653.88,651.8,1.13865908]
[1747822438449,0.26661968,653.88,651.81,0.91696905]
[1747822438745,0.26661968,653.88,651.82,0.610425]
[1747822438945,0.26661968,653.88,651.83,0.610425]
[1747822439241,3.82364943,653.89,651.78,0.59421832]
[1747822439446,3.82364943,653.89,651.79,0.61050599]
[1747822439647,3.82364943,653.89,651.8,0.61050599]
[1747822439946,3.82364943,653.6,651.84,0.59421832]
[1747822440446,0.26662683,653.59,651.84,0.59421832]
[1747822440745,1.79662683,653.59,651.84,0.59421832]
[1747822441246,1.79662683,653.59,651.69,0.64799162]
[1747822441447,1.79662683,653.59,651.7,2.05580905]
[1747822441647,1.79662683,653.59,651.71,0.30653245]
[1747822441850,1.79662683,653.59,651.72,0.30653245]
[1747822442051,1.79662683,653.59,651.73,2.05580777]
[1747822442243,1.53,653.59,651.74,0.61055586]
[1747822442441,1.53,653.59,651.75,0.61055586]
[1747822442647,1.53,653.59,651.76,0.61055586]
[1747822442844,1.53,653.59,651.77,0.61055586]
[1747822443045,1.53,653.59,651.78,0.61055586]
[1747822443246,1.53,653.59,651.79,0.61055586]
[1747822443550,0.26663602,653.58,651.8,0.61055586]
[1747822443745,0.26663602,653.58,651.81,0.61055586]
[1747822443948,0.26663602,653.58,651.82,0.59421832]
[1747822445247,1.53,653.59,651.83,0.61062103]
[1747822445548,0.26662376,653.57,651.84,0.61062103]
[1747822445747,0.26662376,653.57,651.85,0.61062103]
[1747822446050,0.26662376,653.57,651.86,0.61062103]
[1747822446255,0.26662376,653.57,651.87,0.61062103]
[1747822446455,0.26662376,653.57,651.88,0.61062103]
[1747822446657,0.26662376,653.57,651.89,0.61062103]
[1747822446858,0.26662376,653.57,651.9,0.59421832]
[1747822447854,0.26662376,653.57,651.91,1.13880172]
[1747822448056,0.26662376,653.57,651.92,0.91695205]
[1747822448259,1.53,653.59,651.93,0.91695205]
[1747822448556,0.26659925,653.56,651.94,1.74926306]
[1747822448761,0.26659925,653.56,651.95,0.91694412]
[1747822449059,0.26659925,653.56,651.96,2.05574584]
[1747822449255,0.26659925,653.56,651.97,0.91694379]
[1747822449459,0.26659925,653.56,651.98,0.61046134]
[1747822449658,0.26659925,653.56,651.99,0.61046134]
[1747822449856,0.26659925,653.56,652.0,0.61046134]
[1747822450060,0.26659925,653.56,652.01,1.20467966]
[1747822450260,0.26659925,653.56,652.02,0.61046134]
[1747822450663,0.26659925,653.56,652.01,0.59421832]
[1747822451264,1.53,653.59,652.01,0.59421832]
[1747822451564,1.53,653.59,652.02,0.61090196]
[1747822451763,1.53,653.59,652.03,0.61090196]
[1747822451964,1.53,653.59,651.74,0.64799162]
[1747822452164,1.53,653.59,651.75,0.91738021]
[1747822452365,1.53,653.59,651.76,2.6513046]
[1747822452561,0.26663193,653.58,651.77,0.91738021]
[1747822452764,0.26663193,653.58,651.78,0.91738021]
[1747822452963,0.26663193,653.58,651.79,0.91738021]
[1747822453165,0.26663193,653.58,651.8,0.91738021]
[1747822453365,0.26663193,653.58,651.81,0.91738021]
[1747822453665,0.26663193,653.58,651.82,2.05708628]
[1747822453858,0.26663193,653.58,651.83,0.91738021]
[1747822454063,0.26663193,653.58,651.84,0.91747431]
[1747822454261,0.26663193,653.58,651.82,1.13970607]
[1747822454262,1.53,653.59,651.85,2.05718038]
[1747822454463,1.53,653.59,651.86,0.91747431]
[1747822454665,1.53,653.59,651.87,0.91747431]
[1747822454865,1.53,653.59,651.88,0.91747431]
[1747822455067,1.53,653.59,651.89,0.91747431]
[1747822455268,1.53,653.59,651.9,2.05718038]
[1747822455463,0.26661763,653.58,651.91,0.91747431]
[1747822455669,0.26661763,653.58,651.92,2.05736422]
[1747822455969,0.26661763,653.58,651.93,0.91765815]
[1747822456165,0.26661763,653.58,651.94,0.91765815]
[1747822456372,0.26661763,653.58,651.95,0.61115281]
[1747822456566,0.26661763,653.58,651.96,0.61115281]
[1747822456767,0.26661763,653.58,651.97,0.61115281]
[1747822456970,0.26661763,653.58,651.98,0.61115281]
[1747822457170,0.26661763,653.58,651.99,0.61115281]
[1747822457470,1.53,653.59,652.0,0.61115281]
[1747822457670,1.53,653.59,652.01,0.61114051]
[1747822457865,1.53,653.59,652.02,0.61114051]
[1747822458072,1.53,653.59,651.95,0.59421832]
[1747822458275,1.53,653.59,652.03,0.59421832]
[1747822458471,0.26661048,653.58,652.03,0.59421832]
[1747822459275,0.26661048,653.58,652.04,0.61128837]
[1747822459476,0.26661048,653.58,651.73,0.59421832]
[1747822459675,0.26661048,653.58,651.74,0.91779446]
[1747822459874,0.26661048,653.58,651.75,0.6112931]
[1747822460073,0.26661048,653.58,651.76,0.6112931]
[1747822460270,1.53,653.59,651.77,0.6112931]
[1747822460470,1.53,653.59,651.78,0.6112931]
[1747822460675,3.82364943,653.67,651.78,0.6112931]
[1747822460877,3.82364943,653.67,651.73,0.59421832]
[1747822461071,3.82364943,653.67,651.79,0.59421832]
[1747822461576,0.26661865,653.66,651.79,0.59421832]
[1747822462677,0.26661865,653.66,651.8,0.59421832]
[1747822463174,3.82364943,653.67,651.8,0.59421832]